fUST/lending_fUST_20240612
["ID","MTS","AMOUNT","RATE_DAILY","PERIOD"]
[329234509,1718193058721,-4973.356387,0.00017534,2]
[329234510,1718193058734,-500.0,0.00017534,2]
[329234511,1718193058746,-4973.356387,0.00017534,2]
[329234512,1718193058760,-5171.71,0.00017534,2]
[329234513,1718193058773,-500.0,0.00017534,2]
[329234514,1718193058786,-500.0,0.00017534,2]
[329234515,1718193058799,-500.0,0.00017534,2]
[329234516,1718193058813,-1701.47971,0.00017534,2]
[329234517,1718193058827,-503.36417828,0.00017534,2]
[329234518,1718193058857,-1701.47971,0.00017534,2]
[329234519,1718193058871,-500.0,0.00017534,2]
[329234520,1718193059019,-1197.717234,0.00017534,2]
[329234521,1718193059058,-500.0,0.00017534,2]
[329234522,1718193059073,-1197.717234,0.00017534,2]
[329234523,1718193059089,-3189.287515,0.00017534,2]
[329234524,1718193059101,-506.08061859,0.00017534,2]
[329234525,1718193059112,-395.55217758,0.00017534,2]
[329234526,1718193059123,-3189.287515,0.00017534,2]
[329234527,1718193059135,-364.500917,0.00017534,2]
[329234528,1718193059145,-500.0,0.00017534,2]
[329234529,1718193059157,-364.500917,0.00017534,2]
[329234530,1718193059167,-450.24372524,0.00017534,2]
[329234531,1718193059177,-14051.39,0.00017534,2]
[329234532,1718193059189,-506.61612816,0.00017534,2]
[329234533,1718193059200,-500.0,0.00017534,2]
[329234534,1718193059210,-151.0,0.00017534,2]
[329234535,1718193059220,-1944.67,0.00017534,2]
[329234536,1718193059231,-588.10580168,0.00017534,2]
[329234537,1718193059241,-500.0,0.00017534,2]
[329234538,1718193059251,-507.09911084,0.00017534,2]
[329234539,1718193059262,-500.0,0.00017534,2]
[329234540,1718193059272,-651.424457,0.00017534,2]
[329234541,1718193059282,-510.30905643,0.00017534,2]
[329234542,1718193059293,-651.424457,0.00017534,2]
[329234543,1718193059304,-972.74,0.00017534,2]
[329234544,1718193059314,-151.0,0.00017534,2]
[329234545,1718193059325,-500.0,0.00017534,2]
[329234546,1718193059339,-500.0,0.00017534,2]
[329234547,1718193059351,-500.0,0.00017534,2]
[329234548,1718193059362,-500.0,0.00017534,2]
[329234549,1718193059374,-500.0,0.00017534,2]
[329234550,1718193059384,-500.0,0.00017534,2]
[329234551,1718193059396,-497.44312298,0.00017534,2]
[329234552,1718193059409,-714.42,0.00017534,2]
[329234553,1718193059419,-235.546089,0.00017534,2]
[329234554,1718193059429,-500.0,0.00017534,2]
[329234555,1718193059441,-235.546089,0.00017534,2]
[329234556,1718193059452,-505.99340678,0.00017534,2]
[329234557,1718193059463,-500.0,0.00017534,2]
[329234558,1718193059475,-500.0,0.00017534,2]
[329234559,1718193059486,-500.0,0.00017534,2]
[329234560,1718193059497,-500.0,0.00017534,2]
[329234561,1718193059507,-500.0,0.00017534,2]
[329234562,1718193059518,-500.0,0.00017534,2]
[329234563,1718193059535,-500.0,0.00017534,2]
[329234564,1718193059545,-2061.650942,0.00017534,2]
[329234565,1718193059557,-500.0,0.00017534,2]
[329234566,1718193059571,-500.0,0.00017534,2]
[329234567,1718193059582,-2061.650942,0.00017534,2]
[329234568,1718193059594,-500.0,0.00017534,2]
[329234569,1718193059606,-500.0,0.00017534,2]
[329234570,1718193059616,-364.40529576,0.00017534,2]
[329234571,1718193059628,-5363.13,0.00017534,2]
[329234572,1718193059640,-420.0,0.00017597,2]
[329234573,1718193059650,-1975.42229871,0.000176,2]
[329234574,1718193059661,-1413.72458706,0.00017687,2]
[329234575,1718193059672,-928.18573544,0.00017727,2]
[329234576,1718193059682,-151.0,0.00017805,2]
[329234577,1718193059694,-256.94135,0.00017805,2]
[329234578,1718193059704,-256.94135,0.00017805,2]
[329234579,1718193059714,-303.523338,0.00017805,2]
[329234580,1718193059725,-303.523338,0.00017805,2]
[329234581,1718193059735,-151.0,0.00017805,2]
[329234582,1718193059745,-151.0,0.00017805,2]
[329234583,1718193059755,-205.911629,0.00017805,2]
[329234584,1718193059765,-205.911629,0.00017805,2]
[329234585,1718193059774,-161.117024,0.00017805,2]
[329234586,1718193059785,-161.117024,0.00017805,2]
[329234587,1718193059795,-2116.775547,0.00017805,2]
[329234588,1718193059807,-2116.775547,0.00017805,2]
[329234589,1718193059818,-151.0,0.00017805,2]
[329234590,1718193059830,-151.0,0.00017805,2]
[329234591,1718193059851,-99359.61418906,0.00017805,2]
[329234592,1718193059863,-160.34758777,0.00017808,2]
[329234593,1718193059876,-151.0,0.00017808,2]
[329234594,1718193059888,-151.0,0.00017808,2]
[329234595,1718193059900,-500.0,0.00017808,2]
[329234596,1718193059910,-500.0,0.00017808,2]
[329234597,1718193059920,-500.0,0.00017808,2]
[329234598,1718193059931,-500.0,0.00017808,2]
[329234599,1718193059943,-500.0,0.00017808,2]
[329234600,1718193059954,-500.0,0.00017808,2]
[329234601,1718193059965,-619.93,0.00017808,2]
[329234602,1718193059978,-500.0,0.00017808,2]
[329234603,1718193059989,-500.0,0.00017808,2]
[329234604,1718193060001,-500.0,0.00017808,2]
[329234605,1718193060011,-250.0,0.00017808,2]
[329234606,1718193060022,-500.0,0.00017808,2]
[329234607,1718193060032,-500.0,0.00017808,4]
[329234608,1718193060043,-500.0,0.00017808,2]
[329234609,1718193060054,-623.9,0.00017808,2]
[329234610,1718193060071,-500.0,0.00017808,2]
[329234611,1718193060091,-500.0,0.00017808,2]
[329234612,1718193060105,-500.0,0.00017808,2]
[329234613,1718193060117,-151.0,0.00017808,2]
[329234614,1718193060130,-151.0,0.00017808,2]
[329234615,1718193060142,-543.03,0.00017808,2]
[329234616,1718193060153,-500.0,0.00017808,2]
[329234617,1718193060167,-976.65,0.00017808,2]
[329234618,1718193060178,-325.28261187,0.00017808,2]
[329234619,1718193060192,-500.0,0.00017808,2]
[329234620,1718193060209,-500.0,0.00017808,2]
[329234621,1718193060226,-500.0,0.00017808,2]
[329234622,1718193060266,-500.0,0.00017808,2]
[329234623,1718193060283,-504.19,0.00017808,2]
[329234624,1718193060306,-319.4026,0.00017808,2]
[329234625,1718193060320,-319.4026,0.00017808,2]
[329234626,1718193060334,-506.55197469,0.00017808,2]
[329234627,1718193060350,-500.0,0.00017808,2]
[329234628,1718193060363,-500.0,0.00017808,2]
[329234629,1718193060381,-155.59364997,0.00017808,2]
[329234630,1718193060396,-161.00519817,0.00017808,2]
[329234631,1718193060412,-500.0,0.00017808,2]
[329234632,1718193060430,-500.0,0.00017808,2]
[329234633,1718193060442,-500.0,0.00017808,2]
[329234634,1718193060456,-552.22,0.00017808,2]
[329234635,1718193060469,-500.0,0.00017808,2]
[329234636,1718193060489,-500.0,0.00017808,2]
[329234637,1718193060501,-180.8659868,0.00017808,2]
[329234638,1718193060516,-927.64,0.00017808,2]
[329234639,1718193060540,-151.0,0.00017808,2]
[329234640,1718193060553,-1556.97,0.00017808,2]
[329234641,1718193060564,-500.0,0.00017808,2]
[329234642,1718193060578,-853.65,0.00017808,2]
[329234643,1718193060591,-639.26,0.00017808,2]
[329234644,1718193060602,-505.87696066,0.00017808,2]
[329234645,1718193060626,-151.0,0.00017808,2]
[329234646,1718193060637,-500.0,0.00017808,2]
[329234647,1718193060648,-500.0,0.00017808,2]
[329234648,1718193060661,-500.0,0.00017808,2]
[329234649,1718193060672,-500.0,0.00017808,2]
[329234650,1718193060683,-8528.31,0.00017808,2]
[329234651,1718193060707,-2286.58,0.00017808,2]
[329234652,1718193060730,-500.0,0.00017808,2]
[329234653,1718193060750,-211.100469,0.00017808,2]
[329234654,1718193060761,-500.0,0.00017808,2]
[329234655,1718193060784,-547.24091,0.00017808,2]
[329234656,1718193060798,-454.82765048,0.00017808,2]
[329234657,1718193060813,-211.100469,0.00017808,2]
[329234658,1718193060828,-511.80827517,0.00017808,2]
[329234659,1718193060874,-547.24091,0.00017808,2]
[329234660,1718193060888,-20503.61,0.00017808,2]
[329234661,1718193060905,-182.665181,0.00017808,2]
[329234662,1718193060917,-404.35118187,0.00017808,2]
[329234663,1718193060929,-512.43162702,0.00017808,2]
[329234664,1718193060941,-182.665181,0.00017808,2]
[329234665,1718193060951,-500.0,0.00017808,2]
[329234666,1718193060962,-5004.44,0.00017808,2]
[329234667,1718193060973,-905.24381868,0.00017808,2]
[329234668,1718193061781,-3396.2,0.00016438,2]
[329234669,1718193061792,-3396.2,0.00016438,2]
[329234670,1718193061803,-3396.2,0.00016438,2]
[329234671,1718193061814,-3396.2,0.00016438,2]
[329234672,1718193061826,-3396.2,0.00016438,2]
[329234673,1718193061860,-500.0,0.00016438,2]
[329234674,1718193061874,-508.12188544,0.00016438,2]
[329234675,1718193061886,-3396.2,0.00016438,2]
[329234676,1718193061898,-3396.2,0.00016438,2]
[329234677,1718193061915,-3396.2,0.00016438,2]
[329234678,1718193061932,-3396.2,0.00016438,2]
[329234679,1718193061944,-3396.2,0.00016438,2]
[329234680,1718193061962,-3396.2,0.00016438,2]
[329234681,1718193061978,-3396.2,0.00016438,2]
[329234682,1718193061993,-413.46849112,0.00016438,2]
[329234683,1718193062324,-2982.73150888,0.00016438,2]
[329234684,1718193062336,-235.94139885,0.00016438,2]
[329234685,1718193062347,-3396.2,0.00016438,2]
[329234686,1718193062358,-2277.76160689,0.00016438,2]
[329234687,1718193062645,-1118.43839311,0.00016438,2]
[329234688,1718193062658,-500.0,0.00016438,2]
[329234689,1718193062669,-1278.17,0.00016438,2]
[329234690,1718193062679,-3396.2,0.00016711,2]
[329234691,1718193062689,-3396.2,0.00016711,2]
[329234692,1718193062700,-1723.92644542,0.00016711,2]
[329234693,1718193062713,-1672.27355458,0.00016711,2]
[329234694,1718193062724,-3396.2,0.00016711,2]
[329234695,1718193062734,-357.89573895,0.00016711,2]
[329234696,1718193062761,-2853.93891233,0.00016711,2]
[329234697,1718193073669,778.24,0.00010959,2]
[329234698,1718193091878,2741.83237199,0.00017808,15]
[329234699,1718193203509,311.0239626,0.00014867,2]
[329234700,1718193211432,1370.91618599,0.00016712,15]
[329234704,1718193534869,192.081066,0.0001469,2]
[329234705,1718193586781,180.5577526,9.999e-05,2]
[329234706,1718193675242,318.6149584,0.0001469,2]
[329234709,1718193865204,659.9278516,0.00014828,2]
[329234711,1718194004313,4559.5544088,0.00014709,2]
[329234712,1718194037279,155.02790502,9.999e-05,2]
[329234794,1718194242296,-42119.04264083,0.00014705,2]
[329234796,1718194242319,-155.03255684,0.00014706,2]
[329234798,1718194242340,-300.0,0.00014706,2]
[329234800,1718194242351,-300.0,0.00014706,2]
[329234801,1718194242367,-7921.82449081,0.00014706,2]
[329234803,1718194242378,-20340.4455912,0.00014709,2]
[329234806,1718194242389,-1237.00901373,0.00015608,2]
[329234808,1718194242399,-1302.68548416,0.00015693,2]
[329234809,1718194242410,-208.33723987,0.00015709,2]
[329234812,1718194242421,-9588.50838645,0.00015709,2]
[329234814,1718194242431,-155.03195233,0.00015709,2]
[329234817,1718194242442,-309.9070279,0.00015709,2]
[329234819,1718194242453,-166.25631759,0.00015709,2]
[329234821,1718194242464,-2683.16682461,0.00015709,2]
[329234824,1718194242475,-474.73181278,0.00015709,2]
[329234825,1718194242486,-2901.48491975,0.0001571,2]
[329234828,1718194242497,-32704.90771859,0.00015711,2]
[329234831,1718194242508,-216.2,0.00015909,2]
[329234834,1718194242532,-225.74336547,0.00016,2]
[329234838,1718194242577,-1107.69609106,0.00016,2]
[329234841,1718194242588,-1000.0,0.00016,2]
[329234844,1718194242601,-216.2,0.00016055,2]
[329234846,1718194242611,-210.0,0.000161,2]
[329234849,1718194242622,-210.0,0.00016177,2]
[329234852,1718194242632,-216.2,0.000162,2]
[329234854,1718194242642,-285.52460434,0.00016338,2]
[329234855,1718194242655,-216.2,0.00016345,2]
[329234856,1718194242667,-500.0,0.00016438,2]
[329234858,1718194242679,-500.0,0.00016438,2]
[329234860,1718194242704,-500.0,0.00016438,2]
[329234861,1718194242714,-500.0,0.00016438,2]
[329234863,1718194242725,-183.79379664,0.00016438,2]
[329234865,1718194242737,-500.0,0.00016438,2]
[329234867,1718194242747,-524.11930544,0.00016438,2]
[329234868,1718194242758,-500.0,0.00016438,2]
[329234870,1718194242769,-500.0,0.00016438,2]
[329234871,1718194242784,-500.0,0.00016438,2]
[329234874,1718194242795,-512.37213816,0.00016438,2]
[329234875,1718194242805,-500.0,0.00016438,2]
[329234877,1718194242816,-500.0,0.00016438,2]
[329234878,1718194242829,-501.51613761,0.00016438,2]
[329234880,1718194242841,-500.0,0.00016438,2]
[329234882,1718194242852,-500.0,0.00016438,2]
[329234883,1718194242862,-500.72636467,0.00016438,2]
[329234885,1718194242874,-501.34692839,0.00016438,2]
[329234887,1718194242885,-250.0,0.00016438,2]
[329234889,1718194242895,-501.35862995,0.00016438,2]
[329234890,1718194242905,-500.0,0.00016438,2]
[329234891,1718194242917,-500.0,0.00016438,2]
[329234893,1718194242932,-500.0,0.00016438,2]
[329234894,1718194242943,-500.0,0.00016438,2]
[329234897,1718194242954,-502.22495603,0.00016438,2]
[329234900,1718194242964,-500.0,0.00016438,2]
[329234902,1718194242976,-500.0,0.00016438,2]
[329234904,1718194242987,-500.0,0.00016438,2]
[329234906,1718194242997,-500.0,0.00016438,4]
[329234908,1718194243010,-500.0,0.00016438,2]
[329234910,1718194243020,-500.0,0.00016438,2]
[329234912,1718194243030,-500.0,0.00016438,2]
[329234913,1718194243041,-500.0,0.00016438,2]
[329234915,1718194243051,-500.0,0.00016438,2]
[329234917,1718194243062,-501.74210217,0.00016438,2]
[329234919,1718194243074,-500.0,0.00016438,2]
[329234921,1718194243088,-579.37206384,0.00016438,2]
[329234922,1718194243099,-502.48313315,0.00016438,2]
[329234924,1718194243109,-502.66828748,0.00016438,2]
[329234926,1718194243120,-492.9650101,0.00016438,2]
[329234927,1718194243131,-533.13030251,0.00016438,2]
[329234929,1718194243141,-500.0,0.00016438,2]
[329234930,1718194243151,-520.73724395,0.00016438,2]
[329234931,1718194243162,-500.0,0.00016438,2]
[329234932,1718194243173,-500.0,0.00016438,2]
[329234933,1718194243183,-500.0,0.00016438,2]
[329234934,1718194243193,-500.0,0.00016438,2]
[329234935,1718194243204,-500.0,0.00016438,2]
[329234936,1718194243214,-500.0,0.00016438,2]
[329234937,1718194243225,-501.27021013,0.00016438,2]
[329234938,1718194243235,-500.0,0.00016438,2]
[329234939,1718194243246,-500.0,0.00016438,2]
[329234940,1718194243256,-500.0,0.00016438,2]
[329234941,1718194243267,-507.01378792,0.00016438,2]
[329234942,1718194243278,-541.91298951,0.00016438,2]
[329234943,1718194243289,-501.19633384,0.00016438,2]
[329234944,1718194243300,-500.96029434,0.00016438,2]
[329234945,1718194243319,-500.0,0.00016438,2]
[329234946,1718194243349,-526.31069258,0.00016438,2]
[329234947,1718194243361,-500.0,0.00016438,2]
[329234948,1718194243371,-500.0,0.00016438,2]
[329234949,1718194243382,-516.78545314,0.00016438,2]
[329234950,1718194243393,-500.0,0.00016438,2]
[329234952,1718194243406,-500.0,0.00016438,2]
[329234954,1718194243422,-500.0,0.00016438,2]
[329234956,1718194243433,-500.0,0.00016438,2]
[329234958,1718194243446,-500.0,0.00016438,2]
[329234960,1718194243459,-202.1669195,0.00016438,2]
[329234962,1718194243471,-572.16711077,0.00016438,2]
[329234964,1718194243482,-500.0,0.00016438,2]
[329234966,1718194243492,-500.0,0.00016438,2]
[329234968,1718194243502,-500.0,0.00016438,2]
[329234970,1718194243513,-500.06826637,0.00016438,2]
[329234972,1718194243524,-315.55547614,0.00016438,2]
[329234973,1718194243535,-501.79030677,0.00016438,2]
[329234976,1718194243548,-500.0,0.00016438,2]
[329234977,1718194243559,-500.0,0.00016438,2]
[329234978,1718194243569,-271.86634984,0.00016438,2]
[329234980,1718194243580,-500.0,0.00016438,2]
[329234982,1718194243591,-500.0,0.00016438,2]
[329234984,1718194243601,-504.49629429,0.00016438,2]
[329234986,1718194243611,-500.0,0.00016438,2]
[329234988,1718194243622,-502.38592744,0.00016438,2]
[329234989,1718194243633,-500.10253692,0.00016438,2]
[329234990,1718194243643,-500.0,0.00016438,2]
[329234992,1718194243655,-500.0,0.00016438,2]
[329234994,1718194243666,-500.0,0.00016438,2]
[329234996,1718194243678,-500.0,0.00016438,2]
[329234998,1718194243690,-500.0,0.00016438,2]
[329235000,1718194243702,-500.0,0.00016438,2]
[329235002,1718194243712,-530.71258531,0.00016438,2]
[329235003,1718194243727,-500.69652808,0.00016438,2]
[329235006,1718194243738,-160.85800074,0.00016438,2]
[329235007,1718194243749,-500.0,0.00016438,2]
[329235009,1718194243761,-500.0,0.00016438,2]
[329235011,1718194243772,-500.0,0.00016438,2]
[329235013,1718194243782,-500.0,0.00016438,2]
[329235015,1718194243793,-633.2101559,0.00016438,2]
[329235016,1718194243804,-372.36696619,0.00016438,2]
[329235018,1718194243814,-500.0,0.00016438,2]
[329235020,1718194243825,-500.0,0.00016438,2]
[329235022,1718194243835,-500.0,0.00016438,2]
[329235023,1718194243845,-500.0,0.00016438,2]
[329235025,1718194243855,-505.04818177,0.00016438,2]
[329235027,1718194243868,-502.94642832,0.00016438,2]
[329235029,1718194243878,-500.0,0.00016438,2]
[329235030,1718194243888,-500.0,0.00016438,2]
[329235032,1718194243903,-500.0,0.00016438,2]
[329235034,1718194243915,-500.0,0.00016438,2]
[329235036,1718194243928,-500.0,0.00016438,2]
[329235037,1718194243938,-500.0,0.00016438,2]
[329235038,1718194243949,-535.26953597,0.00016438,2]
[329235039,1718194243961,-500.0,0.00016438,2]
[329235040,1718194243975,-500.0,0.00016438,2]
[329235042,1718194243987,-500.0,0.00016438,2]
[329235044,1718194244000,-500.0,0.00016438,2]
[329235045,1718194244012,-501.31342103,0.00016438,2]
[329235046,1718194244025,-500.0,0.00016438,2]
[329235047,1718194244037,-500.0,0.00016438,2]
[329235048,1718194244059,-500.0,0.00016438,2]
[329235049,1718194244080,-500.0,0.00016438,2]
[329235050,1718194244105,-472.09947383,0.00016438,2]
[329235051,1718194244140,-500.0,0.00016438,2]
[329235052,1718194244208,-525.08013651,0.00016438,2]
[329235053,1718194244223,-500.0,0.00016438,2]
[329235054,1718194244247,-500.0,0.00016438,2]
[329235055,1718194244263,-502.4076108,0.00016438,2]
[329235057,1718194244284,-500.0,0.00016438,2]
[329235059,1718194244303,-500.0,0.00016438,2]
[329235060,1718194244356,-500.0,0.00016438,2]
[329235061,1718194244386,-530.77251499,0.00016438,2]
[329235062,1718194244416,-503.78273806,0.00016438,2]
[329235063,1718194244436,-175.3000794,0.00016438,2]
[329235065,1718194244457,-500.0,0.00016438,2]
[329235066,1718194244473,-500.0,0.00016438,2]
[329235067,1718194244489,-500.0,0.00016438,2]
[329235068,1718194244500,-502.681243,0.00016438,2]
[329235069,1718194244513,-500.0,0.00016438,2]
[329235070,1718194244528,-500.0,0.00016438,2]
[329235071,1718194244540,-500.0,0.00016438,2]
[329235072,1718194244551,-500.0,0.00016438,2]
[329235073,1718194244564,-500.0,0.00016438,2]
[329235074,1718194244580,-500.0,0.00016438,2]
[329235076,1718194244594,-500.0,0.00016438,2]
[329235077,1718194244606,-500.0,0.00016438,2]
[329235079,1718194244619,-500.0,0.00016438,2]
[329235081,1718194244630,-500.0,0.00016438,2]
[329235083,1718194244642,-500.0,0.00016438,2]
[329235085,1718194244653,-500.0,0.00016438,2]
[329235087,1718194244665,-500.0,0.00016438,2]
[329235088,1718194244677,-500.0,0.00016438,2]
[329235090,1718194244688,-500.0,0.00016438,2]
[329235091,1718194244698,-500.0,0.00016438,2]
[329235092,1718194244709,-500.0,0.00016438,2]
[329235094,1718194244720,-500.0,0.00016438,2]
[329235096,1718194244731,-551.07110592,0.00016438,2]
[329235098,1718194244744,-500.0,0.00016438,2]
[329235100,1718194244760,-516.60972378,0.00016438,2]
[329235103,1718194244779,-500.0,0.00016438,2]
[329235105,1718194244794,-500.0,0.00016438,2]
[329235107,1718194244822,-500.0,0.00016438,2]
[329235109,1718194244836,-500.0,0.00016438,2]
[329235111,1718194244848,-500.0,0.00016438,2]
[329235112,1718194244864,-529.84151457,0.00016438,2]
[329235114,1718194244880,-500.0,0.00016438,2]
[329235116,1718194244894,-500.0,0.00016438,2]
[329235118,1718194244906,-500.0,0.00016438,2]
[329235120,1718194244918,-500.0,0.00016438,2]
[329235123,1718194244937,-502.16644432,0.00016438,2]
[329235125,1718194244948,-500.0,0.00016438,2]
[329235127,1718194244959,-500.0,0.00016438,2]
[329235129,1718194244973,-158.862796,0.00016438,2]
[329235130,1718194244984,-171.70472741,0.00016438,2]
[329235131,1718194244994,-568.38,0.00016438,2]
[329235132,1718194245007,-500.0,0.00016438,2]
[329235133,1718194245017,-500.0,0.00016438,2]
[329235134,1718194245031,-500.0,0.00016438,2]
[329235135,1718194245045,-500.0,0.00016438,2]
[329235136,1718194245057,-507.96230771,0.00016438,2]
[329235137,1718194245068,-500.0,0.00016438,2]
[329235138,1718194245082,-500.0,0.00016438,2]
[329235139,1718194245116,-444.21600731,0.00016438,2]
[329235140,1718194245128,-500.0,0.00016438,2]
[329235141,1718194245172,-500.0,0.00016438,2]
[329235143,1718194245202,-500.0,0.00016438,2]
[329235145,1718194245218,-500.0,0.00016438,2]
[329235147,1718194245246,-500.0,0.00016438,2]
[329235149,1718194245268,-500.0,0.00016438,2]
[329235150,1718194245279,-500.0,0.00016438,2]
[329235152,1718194245290,-500.0,0.00016438,2]
[329235153,1718194245300,-500.0,0.00016438,2]
[329235155,1718194245338,-500.0,0.00016438,2]
[329235156,1718194245355,-500.0,0.00016438,2]
[329235158,1718194245367,-500.0,0.00016438,2]
[329235159,1718194245378,-500.0,0.00016438,2]
[329235161,1718194245388,-500.0,0.00016438,2]
[329235162,1718194245399,-502.69348134,0.00016438,2]
[329235163,1718194245410,-508.44242997,0.00016438,2]
[329235164,1718194245421,-532.1395488,0.00016438,2]
[329235165,1718194245432,-500.0,0.00016438,2]
[329235166,1718194245443,-500.0,0.00016438,2]
[329235167,1718194245454,-500.0,0.00016438,2]
[329235168,1718194245467,-500.0,0.00016438,2]
[329235169,1718194245480,-500.0,0.00016438,2]
[329235170,1718194245492,-500.0,0.00016438,2]
[329235172,1718194245503,-500.0,0.00016438,2]
[329235173,1718194245514,-500.0,0.00016438,2]
[329235174,1718194245525,-500.88011306,0.00016438,2]
[329235175,1718194245537,-500.0,0.00016438,2]
[329235176,1718194245547,-500.0,0.00016438,2]
[329235177,1718194245558,-500.0,0.00016438,2]
[329235178,1718194245570,-500.0,0.00016438,2]
[329235179,1718194245581,-500.0,0.00016438,2]
[329235180,1718194245592,-500.0,0.00016438,2]
[329235181,1718194245606,-523.76957643,0.00016438,2]
[329235182,1718194245618,-502.50937641,0.00016438,2]
[329235183,1718194245628,-500.0,0.00016438,2]
[329235184,1718194245639,-500.0,0.00016438,2]
[329235185,1718194245650,-500.0,0.00016438,2]
[329235186,1718194245661,-500.0,0.00016438,2]
[329235187,1718194245672,-435.55247933,0.00016438,2]
[329235188,1718194245683,-518.61,0.00016438,2]
[329235189,1718194245694,-500.0,0.00016438,2]
[329235190,1718194245704,-875.41,0.00016438,2]
[329235191,1718194245714,-500.0,0.00016438,2]
[329235192,1718194245725,-500.0,0.00016438,2]
[329235193,1718194245735,-500.0,0.00016438,2]
[329235194,1718194245746,-500.0,0.00016438,2]
[329235195,1718194245757,-511.33416529,0.00016438,2]
[329235196,1718194245768,-500.0,0.00016438,2]
[329235197,1718194245778,-500.0,0.00016438,2]
[329235198,1718194245789,-500.0,0.00016438,2]
[329235199,1718194245800,-500.0,0.00016438,2]
[329235200,1718194245811,-273.40118207,0.00016438,2]
[329235201,1718194245821,-500.0,0.00016438,2]
[329235202,1718194245832,-500.0,0.00016438,2]
[329235203,1718194245843,-500.0,0.00016438,2]
[329235204,1718194245854,-503.36417828,0.00016438,2]
[329235205,1718194245866,-500.0,0.00016438,2]
[329235206,1718194245877,-500.0,0.00016438,2]
[329235207,1718194245887,-500.0,0.00016438,2]
[329235208,1718194245898,-261.89347429,0.00016438,2]
[329235209,1718194245909,-167.66469274,0.00016438,2]
[329235210,1718194245927,-500.0,0.00016438,2]
[329235211,1718194245938,-500.0,0.00016438,2]
[329235212,1718194245948,-500.0,0.00016438,2]
[329235213,1718194245959,-500.0,0.00016438,2]
[329235214,1718194245973,-450.24372524,0.00016438,2]
[329235215,1718194245983,-500.0,0.00016438,2]
[329235216,1718194245993,-500.0,0.00016438,2]
[329235217,1718194246005,-500.0,0.00016438,2]
[329235218,1718194246016,-500.0,0.00016438,2]
[329235219,1718194246027,-500.0,0.00016438,2]
[329235220,1718194246037,-500.0,0.00016438,2]
[329235221,1718194246052,-500.0,0.00016438,2]
[329235222,1718194246064,-500.0,0.00016438,2]
[329235223,1718194246074,-500.5188275,0.00016438,2]
[329235224,1718194246085,-500.0,0.00016438,2]
[329235225,1718194246095,-507.09911084,0.00016438,2]
[329235226,1718194246106,-500.0,0.00016438,2]
[329235227,1718194246117,-500.0,0.00016438,2]
[329235228,1718194246127,-510.30905643,0.00016438,2]
[329235229,1718194246137,-500.0,0.00016438,2]
[329235230,1718194246147,-500.0,0.00016438,2]
[329235231,1718194246158,-500.0,0.00016438,2]
[329235232,1718194246168,-497.44312298,0.00016438,2]
[329235233,1718194246178,-500.0,0.00016438,2]
[329235234,1718194246189,-500.0,0.00016438,2]
[329235235,1718194246199,-501.31958784,0.00016438,2]
[329235236,1718194246209,-506.2,0.00016438,2]
[329235237,1718194246221,-500.0,0.00016438,2]
[329235238,1718194246231,-500.0,0.00016438,2]
[329235239,1718194246246,-500.0,0.00016438,2]
[329235240,1718194246256,-500.0,0.00016438,2]
[329235241,1718194246266,-500.0,0.00016438,2]